[Event "FIDE WCCC Open-08 2024"]
[Site "Montesilvano"]
[Date "2024.11.22"]
[Round "7.3"]
[White "Kavish Palaniappan K"]
[Black "Mani, Sarbartho"]
[Result "0-1"]
[ECO "C02"]
[WhiteElo "1589"]
[BlackElo "1824"]
[Annotator "NA RC"]
[PlyCount "106"]
[EventDate "2024.11.18"]
[EventType "swiss"]
[EventCountry "ITA"]
[SourceTitle "playchess.com"]
[Source "ChessBase"]
[SourceQuality "1"]
[TimeControl "5400+30"]

1. e4 {[%emt 0:00:02]} e6 {[%emt 0:00:30]} 2. d4 {[%emt 0:00:16]} d5 {[%emt 0:00:06]} 3. e5 {[%emt 0:00:55]} c5 {[%emt 0:00:11]} 4. c3 {[%emt 0:00:09]} Nc6 {[%emt 0:00:05]} 5. Nf3 {[%emt 0:00:15]} Qb6 {[%emt 0:00:03]} 6. a3 {[%emt 0:00:18]} c4 {[%emt 0:00:05]} 7. Nbd2 {[%emt 0:00:13]} Na5 {[%emt 0:00:05]} 8. Rb1 {[%emt 0:00:53]} Bd7 {[%emt 0:00:06]} 9. h4 {[%emt 0:00:51]} Ne7 {[%emt 0:03:34]} 10. h5 {[%emt 0:01:08]} h6 {[%emt 0:00:10]} 11. b4 {[%emt 0:01:37]} cxb3 {[%emt 0:00:16]} 12. Nxb3 {[%emt 0:00:10]} Ba4 {[%emt 0:00:39]} 13. Nxa5 {[%emt 0:00:51]} Bxd1 {[%emt 0:01:30]} 14. Rxb6 {[%emt 0:00:05]} axb6 {[%emt 0:00:01]} 15. Nxb7 {[%emt 0:00:10]} Ba4 {[%emt 0:00:04]} 16. Nd6+ {[%emt 0:00:06]} Kd7 {[%emt 0:00:02]} 17. Nxf7 {[%emt 0:00:21]} Rg8 {[%emt 0:00:01]} 18. Bd3 {[%emt 1:31:10]} Nf5 {[%emt 0:00:32]} 19. g4 {[%emt 0:00:00]} Ke8 {[%emt 0:00:05]} 20. gxf5 {[%emt 0:00:00]} Kxf7 {[%emt 0:00:02]} 21. fxe6+ {[%emt 0:00:00]} Kxe6 {[%emt 0:00:02]} 22. Rg1 {[%emt 0:00:00]} Be8 {[%emt 0:00:54]} 23. Bg6 {[%emt 0:00:00]} Bxa3 {[%emt 0:14:58]} 24. Bxe8 {[%emt 0:03:00]} Rgxe8 {[%emt 0:00:21]} 25. Bd2 {[%emt 0:00:00]} Bf8 {[%emt 0:00:13]} 26. Rg6+ {[%emt 0:00:00]} Kd7 {[%emt 0:06:41]} 27. Rxb6 {[%emt 0:00:00]} Be7 {[%emt 0:00:54]} 28. Ke2 {[%emt 0:00:00]} Ra2 {[%emt 0:11:35]} 29. Rg6 {[%emt 0:00:00]} Bf8 {[%emt 0:01:40]} 30. Nh4 {[%emt 0:00:00]} Re6 {[%emt 0:00:03]} 31. Rg3 {[%emt 0:00:00]} Rb6 {[%emt 0:01:01]} 32. f4 {[%emt 0:00:00]} Rbb2 {[%emt 0:00:05]} 33. Nf3 {[%emt 0:00:00]} Rb1 {[%emt 0:06:12]} 34. Rg2 {[%emt 0:00:00]} Rh1 {[%emt 0:00:29]} 35. Rh2 {[%emt 0:00:00]} Rxh2+ {[%emt 0:00:37]} 36. Nxh2 {[%emt 0:00:00]} Ke6 {[%emt 0:00:18]} 37. Ng4 {[%emt 0:00:00]} Kf5 {[%emt 0:00:17]} 38. Nf2 {[%emt 0:01:08]} Ra1 {[%emt 0:00:46]} 39. Kd3 {[%emt 0:00:50]} Be7 {[%emt 0:00:13]} 40. Be3 {[%emt 0:02:41]} Bh4 {[%emt 0:00:14]} 41. Nh3 {[%emt 0:01:16]} Bg3 {[%emt 0:01:28]} 42. Ke2 {[%emt 0:00:54]} Ke4 {[%emt 0:00:22]} 43. Nf2+ {[%emt 0:00:21]} Bxf2 {[%emt 0:00:07]} 44. Kxf2 {[%emt 0:00:34]} Ra2+ {[%emt 0:00:03]} 45. Kg3 {[%emt 0:00:12]} Kxe3 {[%emt 0:00:07]} 46. c4 {[%emt 0:00:22]} dxc4 {[%emt 0:00:12]} 47. d5 {[%emt 0:00:07]} c3 {[%emt 0:00:06]} 48. e6 {[%emt 0:00:09]} c2 {[%emt 0:00:07]} 49. e7 {[%emt 0:00:05]} Ra8 {[%emt 0:00:03]} 50. d6 {[%emt 0:00:07]} c1=Q {[%emt 0:00:07]} 51. d7 {[%emt 0:00:06]} Qg1+ {[%emt 0:00:05]} 52. Kh4 {[%emt 0:00:27]} Kxf4 {[%emt 0:00:34]} 53. e8=Q {[%emt 0:01:33]} Qh2# {[%emt 0:00:09]} 0-1

[Event "FIDE WCCC Open-08 2024"]
[Site "Montesilvano"]
[Date "2024.11.22"]
[Round "7.4"]
[White "Bausys, Benas"]
[Black "Protopopescu, Luca"]
[Result "0-1"]
[ECO "D11"]
[WhiteElo "1564"]
[BlackElo "1818"]
[Annotator "NA RC"]
[PlyCount "108"]
[EventDate "2024.11.18"]
[EventType "swiss"]
[EventCountry "ITA"]
[SourceTitle "playchess.com"]
[Source "ChessBase"]
[SourceQuality "1"]
[TimeControl "5400+30"]

1. Nf3 {[%emt 0:00:30]} d5 {[%emt 1:31:00]} 2. d4 Nf6 {[%emt 0:00:00]} 3. e3 {[%emt 0:00:00]} Bg4 {[%emt 0:00:00]} 4. c4 {[%emt 0:00:00]} c6 {[%emt 0:00:00]} 5. h3 {[%emt 0:00:14]} Bxf3 {[%emt 0:00:00]} 6. Qxf3 {[%emt 0:00:29]} e6 {[%emt 0:00:00]} 7. Nc3 {[%emt 0:00:41]} Bd6 {[%emt 0:00:00]} 8. Bd2 {[%emt 0:01:51]} Nbd7 {[%emt 0:00:00]} 9. Bd3 {[%emt 0:00:28]} a6 {[%emt 0:00:00]} 10. O-O {[%emt 1:31:17]} O-O {[%emt 0:00:00]} 11. Rad1 {[%emt 0:00:00]} Rc8 {[%emt 0:00:00]} 12. b3 {[%emt 0:00:00]} Re8 {[%emt 0:00:00]} 13. e4 {[%emt 0:00:00]} e5 {[%emt 0:00:00]} 14. exd5 {[%emt 0:00:00]} exd4 {[%emt 0:00:00]} 15. Ne4 {[%emt 0:00:00]} Nxe4 {[%emt 0:00:00]} 16. Bxe4 {[%emt 0:00:00]} c5 {[%emt 0:00:00]} 17. g3 {[%emt 0:00:00]} Ne5 {[%emt 0:00:00]} 18. Qg2 {[%emt 0:00:00]} b5 {[%emt 0:00:00]} 19. f4 {[%emt 0:00:00]} Ng6 {[%emt 0:00:00]} 20. h4 {[%emt 0:00:00]} f6 {[%emt 0:00:00]} 21. h5 {[%emt 0:00:00]} Nf8 {[%emt 0:00:00]} 22. g4 {[%emt 0:00:00]} g6 {[%emt 0:00:00]} 23. Rde1 {[%emt 0:00:00]} Rc7 {[%emt 0:00:00]} 24. Qh3 {[%emt 0:00:00]} Rce7 {[%emt 0:00:00]} 25. Qd3 {[%emt 0:00:00]} Qd7 {[%emt 0:00:00]} 26. f5 {[%emt 0:00:00]} g5 {[%emt 0:00:00]} 27. Rf2 {[%emt 0:00:00]} bxc4 {[%emt 0:00:00]} 28. bxc4 {[%emt 0:00:00]} Qa4 {[%emt 0:00:00]} 29. Rfe2 {[%emt 0:00:00]} Nd7 {[%emt 0:00:00]} 30. Qb3 {[%emt 0:00:00]} Qxb3 {[%emt 0:00:00]} 31. axb3 {[%emt 0:00:00]} Bg3 {[%emt 0:00:00]} 32. d6 {[%emt 0:00:00]} Bxd6 {[%emt 0:00:00]} 33. Bd5+ {[%emt 0:00:00]} Kg7 {[%emt 0:00:00]} 34. Rxe7+ {[%emt 0:04:36]} Rxe7 {[%emt 0:00:00]} 35. Be6 {[%emt 0:00:43]} Ne5 {[%emt 0:00:00]} 36. Rf1 {[%emt 0:01:04]} Rb7 {[%emt 0:00:00]} 37. Bd5 {[%emt 0:02:39]} Rxb3 {[%emt 0:00:06]} 38. Ra1 {[%emt 0:00:25]} Rb6 {[%emt 0:02:13]} 39. Ba5 {[%emt 0:00:46]} Rb2 {[%emt 0:01:39]} 40. Be1 {[%emt 0:01:42]} Nxg4 {[%emt 0:05:20]} 41. Rxa6 {[%emt 0:02:02]} Bh2+ {[%emt 0:00:34]} 42. Kh1 {[%emt 0:00:14]} Rb1 {[%emt 0:01:43]} 43. Ra7+ {[%emt 0:00:47]} Kf8 {[%emt 0:00:47]} 44. Bf3 {[%emt 0:01:25]} Rxe1+ {[%emt 0:01:15]} 45. Kg2 {[%emt 0:00:26]} Ne5 {[%emt 0:01:12]} 46. Ra8+ {[%emt 0:00:36]} Ke7 {[%emt 0:00:20]} 47. Ra7+ {[%emt 0:00:31]} Kd8 {[%emt 0:00:22]} 48. Rxh7 {[%emt 0:00:32]} Rg1+ {[%emt 0:00:42]} 49. Kf2 {[%emt 0:00:27]} Nxf3 {[%emt 0:00:47]} 50. Kxf3 {[%emt 0:00:24]} Rg3+ {[%emt 0:00:39]} 51. Ke2 {[%emt 0:00:36]} d3+ {[%emt 0:00:37]} 52. Kd2 {[%emt 0:00:11]} Rh3 {[%emt 0:00:17]} 53. h6 {[%emt 0:00:24]} Bf4+ {[%emt 0:00:07]} 54. Kd1 {[%emt 0:00:15]} Rh1# {[%emt 0:00:07]} 0-1

[Event "FIDE WCCC Open-08 2024"]
[Site "Montesilvano"]
[Date "2024.11.22"]
[Round "7.5"]
[White "Jia, Zining (Matthew)"]
[Black "Ulan, Rizat"]
[Result "0-1"]
[ECO "E92"]
[WhiteElo "1550"]
[BlackElo "1783"]
[Annotator "NA RC"]
[PlyCount "208"]
[EventDate "2024.11.18"]
[EventType "swiss"]
[EventCountry "ITA"]
[SourceTitle "playchess.com"]
[Source "ChessBase"]
[SourceQuality "1"]
[TimeControl "5400+30"]

1. d4 {[%emt 0:00:02]} Nf6 {[%emt 0:00:30]} 2. c4 {[%emt 0:00:10]} g6 {[%emt 0:00:15]} 3. Nc3 {[%emt 0:00:08]} Bg7 {[%emt 0:00:20]} 4. e4 {[%emt 0:00:09]} d6 {[%emt 0:00:10]} 5. Nf3 {[%emt 0:00:19]} O-O {[%emt 0:00:09]} 6. Be2 {[%emt 0:00:04]} e5 {[%emt 0:00:17]} 7. dxe5 {[%emt 0:00:07]} dxe5 {[%emt 0:00:19]} 8. Qxd8 {[%emt 0:00:14]} Rxd8 {[%emt 0:00:09]} 9. Bg5 {[%emt 0:00:07]} Re8 {[%emt 0:00:22]} 10. Nd5 {[%emt 0:00:09]} Nxd5 {[%emt 0:00:23]} 11. cxd5 {[%emt 1:34:31]} c6 {[%emt 0:00:46]} 12. Bc4 {[%emt 0:00:00]} cxd5 {[%emt 0:01:36]} 13. Bxd5 {[%emt 0:00:00]} Nc6 {[%emt 0:01:40]} 14. O-O {[%emt 0:00:00]} h6 {[%emt 0:12:14]} 15. Be3 {[%emt 0:00:00]} Ne7 {[%emt 0:02:44]} 16. Bb3 {[%emt 0:00:00]} Bd7 {[%emt 0:00:21]} 17. Nd2 {[%emt 0:00:00]} Bf8 {[%emt 0:21:21]} 18. Rac1 {[%emt 0:00:00]} Nc6 {[%emt 0:09:39]} 19. Rfd1 {[%emt 0:00:00]} Kg7 {[%emt 0:02:05]} 20. Bd5 {[%emt 0:00:00]} Red8 {[%emt 0:25:29]} 21. Nb3 {[%emt 0:00:00]} Rac8 {[%emt 0:02:49]} 22. f3 {[%emt 0:00:00]} Be8 {[%emt 0:03:21]} 23. Bxc6 {[%emt 0:00:00]} Rxd1+ {[%emt 0:01:23]} 24. Rxd1 {[%emt 0:00:00]} Bxc6 {[%emt 0:02:12]} 25. Rc1 {[%emt 0:00:00]} b6 {[%emt 0:00:45]} 26. Kf2 {[%emt 0:00:00]} Bd7 {[%emt 0:00:42]} 27. Rxc8 {[%emt 0:00:00]} Bxc8 {[%emt 0:00:09]} 28. Nd2 {[%emt 0:00:00]} Kf6 {[%emt 0:12:20]} 29. b3 {[%emt 0:00:00]} h5 {[%emt 0:00:00]} 30. a4 {[%emt 0:00:00]} Bb4 {[%emt 0:00:00]} 31. Nc4 {[%emt 0:00:00]} Be6 {[%emt 0:00:00]} 32. Ke2 {[%emt 0:00:00]} Bd7 {[%emt 0:01:27]} 33. Kd3 {[%emt 0:00:00]} Ke6 {[%emt 0:00:25]} 34. h3 {[%emt 0:00:00]} f5 {[%emt 0:00:34]} 35. Nd2 {[%emt 0:00:00]} f4 {[%emt 0:00:32]} 36. Bf2 {[%emt 0:00:00]} Bc8 {[%emt 0:00:27]} 37. Nc4 {[%emt 0:00:00]} g5 {[%emt 0:00:23]} 38. g3 {[%emt 0:00:00]} fxg3 {[%emt 0:00:40]} 39. Bxg3 {[%emt 0:00:00]} Ba6 {[%emt 0:00:30]} 40. Bxe5 {[%emt 0:00:00]} Bc5 {[%emt 0:00:31]} 41. Bg3 {[%emt 0:00:00]} h4 {[%emt 0:00:25]} 42. Bh2 {[%emt 0:00:00]} Kf6 {[%emt 0:00:33]} 43. Be5+ {[%emt 0:00:00]} Ke7 {[%emt 0:00:31]} 44. f4 {[%emt 0:00:00]} g4 {[%emt 0:00:30]} 45. Ke2 {[%emt 0:00:00]} g3 {[%emt 0:00:31]} 46. Kf3 {[%emt 0:00:00]} Bb7 {[%emt 0:00:14]} 47. f5 {[%emt 0:00:00]} g2 {[%emt 0:00:44]} 48. f6+ {[%emt 0:00:00]} Kf8 {[%emt 0:00:22]} 49. Kxg2 {[%emt 0:00:00]} Bxe4+ {[%emt 0:00:08]} 50. Kh2 {[%emt 0:00:00]} Bc2 {[%emt 0:00:15]} 51. a5 {[%emt 0:00:00]} Bxb3 {[%emt 0:01:16]} 52. axb6 {[%emt 0:00:00]} axb6 {[%emt 0:00:07]} 53. Nd2 {[%emt 0:00:00]} Bd5 {[%emt 0:00:14]} 54. Nb1 {[%emt 0:00:00]} b5 {[%emt 0:00:12]} 55. Nc3 {[%emt 0:00:00]} Bc6 {[%emt 0:00:06]} 56. Ne2 {[%emt 0:00:00]} b4 {[%emt 0:00:29]} 57. Nf4 {[%emt 0:00:00]} Kf7 {[%emt 0:00:03]} 58. Nd3 {[%emt 0:00:00]} Bf8 {[%emt 0:00:15]} 59. Kg1 {[%emt 0:00:00]} Bb5 {[%emt 0:00:44]} 60. Nf2 {[%emt 0:00:00]} Bc5 {[%emt 0:01:48]} 61. Kg2 {[%emt 0:00:00]} Ke6 {[%emt 0:00:47]} 62. Bb2 {[%emt 0:00:00]} Kf5 {[%emt 0:00:40]} 63. Ng4 {[%emt 0:00:00]} Bd6 {[%emt 0:00:31]} 64. Nh6+ {[%emt 0:04:26]} Kg6 {[%emt 0:00:14]} 65. Ng4 {[%emt 0:01:51]} Kg5 {[%emt 0:00:13]} 66. Ne3 {[%emt 0:01:23]} Bd7 {[%emt 0:01:00]} 67. Nc4 {[%emt 0:01:09]} Bc6+ {[%emt 0:00:07]} 68. Kg1 {[%emt 0:00:26]} Bc5+ {[%emt 0:00:21]} 69. Kh2 {[%emt 0:00:18]} Bd5 {[%emt 0:00:29]} 70. Nd2 {[%emt 0:01:10]} Kf5 {[%emt 0:00:16]} 71. Ba1 {[%emt 0:01:54]} Be3 {[%emt 0:00:40]} 72. Nf1 {[%emt 0:00:18]} Bc1 {[%emt 0:00:05]} 73. Bd4 {[%emt 0:00:35]} b3 {[%emt 0:00:23]} 74. Ne3+ {[%emt 0:00:57]} Bxe3 {[%emt 0:00:17]} 75. Bb2 {[%emt 0:00:49]} Ke6 {[%emt 0:00:29]} 76. f7 {[%emt 0:00:10]} Kxf7 {[%emt 0:00:06]} 77. Ba3 {[%emt 0:00:37]} Bf4+ {[%emt 0:00:27]} 78. Kg1 {[%emt 0:17:27]} Be5 {[%emt 0:02:59]} 79. Bc1 {[%emt 0:00:00]} Ke6 {[%emt 0:00:00]} 80. Kf1 {[%emt 0:00:00]} Kf5 {[%emt 0:00:00]} 81. Kg1 {[%emt 0:00:00]} Ke4 {[%emt 0:00:00]} 82. Ba3 {[%emt 0:00:00]} Kd3 {[%emt 0:00:00]} 83. Bc1 {[%emt 0:00:00]} Kc2 {[%emt 0:00:00]} 84. Ba3 {[%emt 0:00:00]} Bd4+ {[%emt 0:00:00]} 85. Kh2 {[%emt 0:00:00]} Be5+ {[%emt 0:00:00]} 86. Kg1 {[%emt 0:00:00]} Bf4 {[%emt 0:00:00]} 87. Kf2 {[%emt 0:00:00]} Kb1 {[%emt 0:00:00]} 88. Be7 {[%emt 0:00:00]} b2 {[%emt 0:00:00]} 89. Bf6 {[%emt 0:00:00]} Kc2 {[%emt 0:00:00]} 90. Bxb2 {[%emt 0:00:00]} Kxb2 {[%emt 0:00:00]} 91. Kg1 {[%emt 0:00:00]} Bg3 {[%emt 0:00:00]} 92. Kf1 {[%emt 0:00:00]} Kc3 {[%emt 0:00:00]} 93. Kg1 {[%emt 0:00:00]} Kd3 {[%emt 0:00:02]} 94. Kf1 {[%emt 0:00:00]} Ke3 {[%emt 0:00:10]} 95. Kg1 {[%emt 0:00:00]} Kf3 {[%emt 0:00:09]} 96. Kf1 {[%emt 0:00:00]} Be6 {[%emt 0:00:05]} 97. Kg1 {[%emt 0:00:00]} Bxh3 {[%emt 0:00:10]} 98. Kh1 {[%emt 0:00:00]} Bf1 {[%emt 0:00:13]} 99. Kg1 {[%emt 0:00:00]} Ba6 {[%emt 0:00:24]} 100. Kh1 {[%emt 0:00:00]} h3 {[%emt 0:00:05]} 101. Kg1 {[%emt 0:00:00]} h2+ {[%emt 0:00:12]} 102. Kh1 {[%emt 0:00:00]} Kf4 {[%emt 0:00:08]} 103. Kg2 {[%emt 0:00:00]} Be2 {[%emt 0:00:16]} 104. Kh1 {[%emt 0:13:00]} Bf3# {[%emt 0:00:07]} 0-1

[Event "FIDE WCCC Open-08 2024"]
[Site "Montesilvano"]
[Date "2024.11.22"]
[Round "7.6"]
[White "Su, Milo"]
[Black "Guo, Philipp Ziming"]
[Result "0-1"]
[ECO "B23"]
[WhiteElo "1696"]
[BlackElo "2139"]
[Annotator "NA RC"]
[PlyCount "76"]
[EventDate "2024.11.18"]
[EventType "swiss"]
[EventCountry "ITA"]
[SourceTitle "playchess.com"]
[Source "ChessBase"]
[SourceQuality "1"]
[TimeControl "5400+30"]

1. e4 {[%emt 1:31:00]} c5 {[%emt 0:00:14]} 2. Nc3 {[%emt 0:00:00]} Nc6 {[%emt 0:00:13]} 3. Bb5 {[%emt 0:00:00]} g6 {[%emt 0:00:06]} 4. Bxc6 {[%emt 0:00:00]} dxc6 {[%emt 0:00:07]} 5. d3 {[%emt 0:00:00]} Bg7 {[%emt 0:00:04]} 6. Be3 {[%emt 0:00:00]} b6 {[%emt 0:00:04]} 7. Qd2 {[%emt 0:00:00]} e5 {[%emt 0:00:06]} 8. f4 {[%emt 0:00:00]} f6 {[%emt 0:02:15]} 9. O-O-O {[%emt 0:00:00]} Qc7 {[%emt 0:00:28]} 10. Nf3 {[%emt 0:00:00]} Bd7 {[%emt 0:05:29]} 11. Rhf1 {[%emt 0:00:00]} h6 {[%emt 0:05:09]} 12. fxe5 {[%emt 0:00:00]} fxe5 {[%emt 0:02:23]} 13. Nh4 {[%emt 0:00:00]} Ne7 {[%emt 0:00:10]} 14. Qe2 {[%emt 0:00:00]} Be6 {[%emt 0:01:29]} 15. Rf2 $14 {[%emt 0:00:00]} O-O-O {[%emt 0:02:04]} 16. Rdf1 {[%emt 0:00:00]} Rhf8 {[%emt 0:02:12]} 17. h3 {[%emt 0:00:00]} Qd7 {[%emt 0:03:32]} 18. g4 {[%emt 0:00:00]} g5 {[%emt 0:11:50]} 19. Nf5 {[%emt 0:00:00]} Ng6 {[%emt 0:00:21]} 20. Na4 {[%emt 0:00:00]} Nf4 {[%emt 0:04:06]} 21. Qd1 {[%emt 0:00:00]} Bxf5 {[%emt 0:01:40]} 22. gxf5 {[%emt 0:00:00]} Nxh3 {[%emt 0:00:39]} 23. Rf3 {[%emt 0:00:00]} g4 {[%emt 0:02:13]} 24. Rg3 {[%emt 0:00:00]} h5 {[%emt 0:00:31]} 25. Qe2 {[%emt 0:00:00]} Nf4 {[%emt 0:01:32]} 26. Qd2 {[%emt 0:00:00]} Bh6 {[%emt 0:00:40]} 27. Kb1 {[%emt 0:00:00]} Rg8 {[%emt 0:00:33]} 28. Rh1 {[%emt 0:00:00]} Qe7 {[%emt 0:01:32]} 29. Qd1 {[%emt 0:00:00]} Qf6 {[%emt 0:02:07]} 30. b3 {[%emt 0:00:00]} Nh3 {[%emt 0:01:44]} 31. Bxh6 {[%emt 0:00:00]} Qxh6 {[%emt 0:00:09]} 32. Qe2 {[%emt 0:00:00]} Qf4 {[%emt 0:01:06]} 33. Rg2 {[%emt 0:00:00]} Qf3 {[%emt 0:00:27]} 34. Rgh2 {[%emt 0:00:00]} Qxe2 {[%emt 0:00:11]} 35. Rxe2 {[%emt 0:00:00]} Nf4 {[%emt 0:00:12]} 36. Re3 {[%emt 0:00:00]} g3 {[%emt 0:00:01]} 37. Nc3 {[%emt 0:00:00]} g2 {[%emt 0:00:20]} 38. Rg1 {[%emt 0:00:00]} h4 {[%emt 0:00:06]} 0-1

[Event "FIDE WCCC Open-08 2024"]
[Site "Montesilvano"]
[Date "2024.11.22"]
[Round "7.7"]
[White "Divith Reddy Adulla"]
[Black "Stankowski, Wiktor"]
[Result "1-0"]
[ECO "B22"]
[WhiteElo "1784"]
[BlackElo "1617"]
[Annotator "NA RC"]
[PlyCount "95"]
[EventDate "2024.11.18"]
[EventType "swiss"]
[EventCountry "ITA"]
[SourceTitle "playchess.com"]
[Source "ChessBase"]
[SourceQuality "1"]
[TimeControl "5400+30"]

1. e4 {[%emt 0:00:01]} c5 {[%emt 0:00:31]} 2. c3 {[%emt 0:00:04]} Nf6 {[%emt 0:01:08]} 3. e5 {[%emt 0:00:05]} Nd5 {[%emt 0:01:27]} 4. d4 {[%emt 0:00:09]} cxd4 {[%emt 0:01:39]} 5. Nf3 {[%emt 0:00:05]} Nc6 {[%emt 0:02:35]} 6. cxd4 {[%emt 0:00:08]} d6 {[%emt 0:03:26]} 7. Bc4 {[%emt 0:00:06]} Nb6 {[%emt 0:02:04]} 8. Bb5 {[%emt 0:00:28]} dxe5 {[%emt 0:04:33]} 9. Nxe5 {[%emt 0:00:14]} Bd7 {[%emt 0:01:58]} 10. Nxd7 {[%emt 0:00:08]} Qxd7 {[%emt 0:00:47]} 11. Nc3 {[%emt 0:00:07]} e6 {[%emt 0:01:20]} 12. O-O {[%emt 0:00:17]} Be7 {[%emt 0:07:46]} 13. Qg4 {[%emt 0:00:10]} O-O {[%emt 0:06:33]} 14. Bxc6 {[%emt 0:00:15]} Qxc6 {[%emt 0:06:22]} 15. Bh6 {[%emt 0:01:30]} Bf6 {[%emt 0:04:44]} 16. Rfd1 {[%emt 0:00:45]} Rfd8 {[%emt 0:17:46]} 17. Ne4 {[%emt 0:00:18]} e5 {[%emt 0:04:39]} 18. Rac1 {[%emt 0:08:00]} Qe6 {[%emt 0:02:05]} 19. Qxe6 {[%emt 0:00:17]} fxe6 {[%emt 0:00:07]} 20. Nxf6+ {[%emt 0:00:11]} gxf6 {[%emt 0:00:01]} 21. dxe5 {[%emt 0:00:27]} fxe5 {[%emt 0:00:28]} 22. Re1 {[%emt 0:00:21]} Rac8 {[%emt 0:04:25]} 23. Rxc8 {[%emt 0:00:29]} Rxc8 {[%emt 0:00:05]} 24. Rxe5 {[%emt 0:00:57]} Rc2 {[%emt 0:01:05]} 25. g3 {[%emt 0:00:24]} Rxb2 {[%emt 0:01:35]} 26. Rg5+ {[%emt 0:00:35]} Kf7 {[%emt 0:00:09]} 27. Rg7+ {[%emt 0:00:07]} Kf6 {[%emt 0:00:19]} 28. Rxb7 {[%emt 0:00:18]} Rxa2 {[%emt 0:01:40]} 29. Rxh7 {[%emt 0:00:30]} a5 {[%emt 0:07:19]} 30. Rb7 {[%emt 0:02:01]} Nd5 {[%emt 0:02:09]} 31. h4 {[%emt 0:00:08]} a4 {[%emt 0:04:22]} 32. h5 {[%emt 0:00:49]} a3 {[%emt 0:05:48]} 33. Ra7 {[%emt 0:02:56]} Kf5 {[%emt 0:03:33]} 34. Rf7+ {[%emt 0:00:11]} Kg4 {[%emt 0:00:24]} 35. Bf8 {[%emt 0:00:45]} Kxh5 {[%emt 0:01:20]} 36. Ra7 {[%emt 0:00:10]} Kg4 {[%emt 0:01:26]} 37. Bxa3 {[%emt 0:00:41]} Kf3 {[%emt 0:00:44]} 38. Rf7+ {[%emt 0:00:08]} Ke4 {[%emt 0:00:24]} 39. Bf8 {[%emt 0:00:24]} e5 {[%emt 0:00:38]} 40. Bg7 {[%emt 0:00:12]} Ra5 {[%emt 0:00:32]} 41. f3+ {[%emt 0:00:19]} Kd4 {[%emt 0:00:31]} 42. f4 {[%emt 0:00:10]} Ra1+ {[%emt 0:00:28]} 43. Kh2 {[%emt 0:00:10]} Ra2+ {[%emt 0:00:33]} 44. Kh3 {[%emt 0:00:07]} Rf2 {[%emt 0:00:24]} 45. Bxe5+ {[%emt 0:00:31]} Ke4 {[%emt 0:00:16]} 46. Ra7 {[%emt 0:01:01]} Rf3 {[%emt 0:00:49]} 47. Ra4+ {[%emt 0:00:33]} Kf5 {[%emt 0:00:11]} 48. Kh4 {[%emt 1:25:48]} 1-0

[Event "FIDE WCCC Open-08 2024"]
[Site "Montesilvano"]
[Date "2024.11.22"]
[Round "7.8"]
[White "Ranganathan, Aadith"]
[Black "Pham, Han Nam"]
[Result "0-1"]
[ECO "B31"]
[WhiteElo "1645"]
[BlackElo "1912"]
[Annotator "NA RC"]
[PlyCount "62"]
[EventDate "2024.11.18"]
[EventType "swiss"]
[EventCountry "ITA"]
[SourceTitle "playchess.com"]
[Source "ChessBase"]
[SourceQuality "1"]
[TimeControl "5400+30"]

1. e4 {[%emt 0:00:21]} c5 {[%emt 0:00:27]} 2. Nf3 {[%emt 0:00:48]} Nc6 {[%emt 0:00:20]} 3. Bb5 {[%emt 0:02:35]} g6 {[%emt 0:00:19]} 4. O-O {[%emt 0:00:15]} Bg7 {[%emt 0:00:14]} 5. c3 {[%emt 0:00:15]} Nf6 {[%emt 0:00:15]} 6. Re1 {[%emt 0:00:09]} O-O {[%emt 0:00:12]} 7. d4 {[%emt 0:00:09]} d5 {[%emt 0:00:36]} 8. e5 {[%emt 0:00:30]} Ne4 {[%emt 0:00:16]} 9. Bxc6 {[%emt 0:00:19]} bxc6 {[%emt 0:00:11]} 10. Nbd2 {[%emt 0:00:12]} cxd4 {[%emt 0:01:35]} 11. cxd4 {[%emt 0:00:09]} c5 {[%emt 0:00:22]} 12. dxc5 {[%emt 0:12:40]} Nxc5 {[%emt 0:01:59]} 13. Qc2 {[%emt 0:01:32]} Qb6 {[%emt 0:03:38]} 14. Nd4 {[%emt 0:16:35]} Ne4 {[%emt 0:03:54]} 15. N2f3 $15 {[%emt 0:10:35]} Bxe5 {[%emt 0:05:23]} 16. Nxe5 {[%emt 0:01:15]} Qxd4 {[%emt 0:00:23]} 17. Nc6 {[%emt 0:00:21]} Qf6 {[%emt 0:00:49]} 18. f3 {[%emt 0:10:34]} Bd7 {[%emt 0:03:42]} 19. Nxe7+ {[%emt 0:01:05]} Qxe7 {[%emt 0:00:08]} 20. fxe4 {[%emt 0:00:09]} Rfe8 {[%emt 0:01:45]} 21. e5 {[%emt 0:02:17]} Bf5 {[%emt 0:01:35]} 22. Qf2 {[%emt 0:01:31]} Rac8 {[%emt 0:02:53]} 23. Bf4 {[%emt 0:02:20]} Rc2 {[%emt 0:01:41]} 24. Re2 {[%emt 0:01:15]} Rec8 {[%emt 0:00:37]} 25. Rae1 {[%emt 0:00:38]} Qb4 {[%emt 0:04:07]} 26. Rxc2 {[%emt 0:07:26]} Rxc2 {[%emt 0:01:11]} 27. Qe3 {[%emt 0:01:16]} Qxb2 {[%emt 0:02:41]} 28. Rc1 {[%emt 0:03:10]} Rxg2+ {[%emt 0:01:13]} 29. Kh1 {[%emt 0:00:51]} Rxh2+ {[%emt 0:00:20]} 30. Bxh2 {[%emt 0:00:10]} Be4+ {[%emt 0:00:04]} 31. Kg1 {[%emt 0:00:05]} Qg2# {[%emt 0:00:07]} 0-1

[Event "FIDE WCCC Open-08 2024"]
[Site "Montesilvano"]
[Date "2024.11.22"]
[Round "7.9"]
[White "Xu, Zhihan (Samuel)"]
[Black "Batbileg, Boldbaatar"]
[Result "1-0"]
[ECO "C55"]
[WhiteElo "1881"]
[BlackElo "1623"]
[Annotator "NA RC"]
[PlyCount "57"]
[EventDate "2024.11.18"]
[EventType "swiss"]
[EventCountry "ITA"]
[SourceTitle "playchess.com"]
[Source "ChessBase"]
[SourceQuality "1"]
[TimeControl "5400+30"]

1. e4 {[%emt 0:00:00]} e5 {[%emt 0:00:14]} 2. Nf3 {[%emt 0:00:02]} Nc6 {[%emt 0:00:20]} 3. Bc4 {[%emt 0:00:02]} Nf6 {[%emt 0:00:16]} 4. d3 {[%emt 0:00:01]} Be7 {[%emt 0:00:39]} 5. O-O {[%emt 0:00:04]} O-O {[%emt 0:00:19]} 6. Nc3 {[%emt 0:00:03]} d6 {[%emt 0:00:28]} 7. a4 {[%emt 0:00:03]} Bg4 {[%emt 0:08:27]} 8. h3 {[%emt 0:00:15]} Bh5 {[%emt 0:00:29]} 9. Be3 {[%emt 0:00:10]} Qc8 {[%emt 0:02:57]} 10. a5 {[%emt 0:05:00]} a6 {[%emt 0:00:44]} 11. Re1 {[%emt 0:02:25]} Nb4 {[%emt 0:07:01]} 12. Bb3 {[%emt 0:13:01]} Rd8 {[%emt 0:01:29]} 13. Nd5 {[%emt 0:02:15]} Nbxd5 {[%emt 0:00:28]} 14. exd5 {[%emt 0:00:08]} Ne8 {[%emt 0:03:19]} 15. g4 {[%emt 0:07:01]} Bg6 {[%emt 0:00:29]} 16. Ra4 {[%emt 0:03:10]} f5 {[%emt 0:05:07]} 17. Nxe5 {[%emt 0:02:15]} dxe5 {[%emt 0:02:22]} 18. d6+ {[%emt 0:00:03]} Kh8 {[%emt 0:00:45]} 19. dxe7 {[%emt 0:00:03]} Rd6 {[%emt 0:01:11]} 20. Bc5 {[%emt 0:00:24]} Rc6 {[%emt 0:12:44]} 21. Rxe5 {[%emt 0:00:05]} Nf6 {[%emt 0:00:46]} 22. Rd4 {[%emt 0:02:00]} Qe8 {[%emt 0:08:55]} 23. Be6 {[%emt 0:01:40]} fxg4 {[%emt 0:01:17]} 24. hxg4 {[%emt 0:00:21]} h6 {[%emt 0:03:19]} 25. f4 {[%emt 0:04:24]} b6 {[%emt 0:12:34]} 26. Ba3 {[%emt 0:01:36]} Rxe6 {[%emt 0:07:51]} 27. Rxe6 {[%emt 0:00:19]} Bf7 {[%emt 0:00:46]} 28. Re5 {[%emt 0:01:10]} Kh7 {[%emt 0:02:36]} 29. Qf3 {[%emt 0:01:40]} 1-0